[Event "Late-Titled-Tuesday-Blitz-February-06-2024"]
[Site "Chess.com"]
[Date "2024.02.06"]
[Round "8"]
[White "Orest_Vovk"]
[Black "K_A_S_T_O_R"]
[Result "0-1"]
[WhiteElo "2584"]
[BlackElo "2867"]
[TimeControl "180+1"]
[EndTime "15:29:49 PST"]
[Termination "K_A_S_T_O_R won on time"]

1. h4 {[%clk 0:02:52.9]} 1... d5 {[%clk 0:02:04.3]} 2. h5 {[%clk 0:02:52.8]}
2... h6 {[%clk 0:02:03.8]} 3. e4 {[%clk 0:02:52.3]} 3... Nf6 {[%clk 0:02:04]} 4.
Nc3 {[%clk 0:02:48.8]} 4... Nxe4 {[%clk 0:01:50.7]} 5. Nxe4 {[%clk 0:02:48.3]}
5... dxe4 {[%clk 0:01:09.7]} 6. Qe2 {[%clk 0:02:48.4]} 6... Nd7 {[%clk
0:01:09.3]} 7. Qxe4 {[%clk 0:02:48.1]} 7... Nf6 {[%clk 0:01:09.9]} 8. Qd3 {[%clk
0:02:48]} 8... c6 {[%clk 0:01:10.4]} 9. Qxd8+ {[%clk 0:02:47.3]} 9... Kxd8
{[%clk 0:01:11.1]} 10. Bc4 {[%clk 0:02:35.5]} 10... Ke8 {[%clk 0:01:07.6]} 11.
Nf3 {[%clk 0:02:32.2]} 11... Bf5 {[%clk 0:01:05.6]} 12. d3 {[%clk 0:02:26.5]}
12... e6 {[%clk 0:01:04.4]} 13. Bf4 {[%clk 0:01:46.7]} 13... Bg4 {[%clk
0:01:03.7]} 14. Ne5 {[%clk 0:01:45.4]} 14... Bxh5 {[%clk 0:01:03.8]} 15. f3
{[%clk 0:01:44.6]} 15... g5 {[%clk 0:01:01.1]} 16. Bh2 {[%clk 0:01:31.9]} 16...
Rg8 {[%clk 0:00:59.7]} 17. g4 {[%clk 0:01:28.7]} 17... Bg6 {[%clk 0:00:59.5]}
18. Nxg6 {[%clk 0:01:28.9]} 18... Rxg6 {[%clk 0:00:59.4]} 19. d4 {[%clk
0:01:22.8]} 19... Rd8 {[%clk 0:00:54.4]} 20. O-O-O {[%clk 0:01:20.9]} 20... Bd6
{[%clk 0:00:53.5]} 21. Bxd6 {[%clk 0:01:14.8]} 21... Rxd6 {[%clk 0:00:53.2]} 22.
Bd3 {[%clk 0:01:15.7]} 22... Rg7 {[%clk 0:00:52.7]} 23. Rxh6 {[%clk 0:00:59.5]}
23... Ke7 {[%clk 0:00:53.2]} 24. c3 {[%clk 0:00:57.2]} 24... Rg8 {[%clk
0:00:53.5]} 25. Be4 {[%clk 0:00:48.9]} 25... b6 {[%clk 0:00:48.9]} 26. Rdh1
{[%clk 0:00:44.9]} 26... c5 {[%clk 0:00:47.3]} 27. dxc5 {[%clk 0:00:41.8]} 27...
bxc5 {[%clk 0:00:47.9]} 28. Rh8 {[%clk 0:00:40.4]} 28... Rdd8 {[%clk 0:00:45.1]}
29. Rxg8 {[%clk 0:00:40.2]} 29... Rxg8 {[%clk 0:00:45.7]} 30. Kc2 {[%clk
0:00:36.9]} 30... Rd8 {[%clk 0:00:45]} 31. a4 {[%clk 0:00:27.2]} 31... c4 {[%clk
0:00:26.3]} 32. a5 {[%clk 0:00:19.8]} 32... Nd7 {[%clk 0:00:26.4]} 33. Rh5
{[%clk 0:00:16.5]} 33... Kf6 {[%clk 0:00:24.5]} 34. Rh6+ {[%clk 0:00:16.1]}
34... Ke5 {[%clk 0:00:24.9]} 35. Rh5 {[%clk 0:00:15.4]} 35... Kf4 {[%clk
0:00:25.2]} 36. Rh7 {[%clk 0:00:13.9]} 36... Rf8 {[%clk 0:00:25.1]} 37. b3
{[%clk 0:00:06]} 37... cxb3+ {[%clk 0:00:24.4]} 38. Kxb3 {[%clk 0:00:06.9]}
38... Nc5+ {[%clk 0:00:24.4]} 39. Kb4 {[%clk 0:00:07.2]} 39... Nxe4 {[%clk
0:00:24.8]} 40. fxe4 {[%clk 0:00:08.1]} 40... Kxe4 {[%clk 0:00:25.2]} 41. c4
{[%clk 0:00:08.3]} 41... f5 {[%clk 0:00:25.5]} 42. gxf5 {[%clk 0:00:07.6]} 42...
exf5 {[%clk 0:00:25.9]} 43. Rxa7 {[%clk 0:00:07.6]} 43... f4 {[%clk 0:00:25.9]}
44. Re7+ {[%clk 0:00:07.8]} 44... Kf5 {[%clk 0:00:25.7]} 45. a6 {[%clk 0:00:08]}
45... f3 {[%clk 0:00:26.1]} 46. Re1 {[%clk 0:00:04.2]} 46... f2 {[%clk 0:00:26]}
47. Rf1 {[%clk 0:00:04.1]} 47... Ke4 {[%clk 0:00:26.6]} 48. a7 {[%clk
0:00:03.5]} 48... Ke3 {[%clk 0:00:26.8]} 49. c5 {[%clk 0:00:03.4]} 49... g4
{[%clk 0:00:27.1]} 50. c6 {[%clk 0:00:03]} 50... g3 {[%clk 0:00:27.3]} 51. c7
{[%clk 0:00:03.2]} 51... g2 {[%clk 0:00:27.6]} 52. Rc1 {[%clk 0:00:01.9]} 52...
f1=Q {[%clk 0:00:27.2]} 53. c8=Q {[%clk 0:00:02.2]} 53... Rxc8 {[%clk
0:00:26.2]} 54. Rxc8 {[%clk 0:00:02.8]} 54... Qb1+ {[%clk 0:00:26.3]} 55. Ka5
{[%clk 0:00:02.5]} 55... Qa2+ {[%clk 0:00:24.6]} 56. Kb6 {[%clk 0:00:02.8]}
56... g1=Q {[%clk 0:00:25]} 57. a8=Q {[%clk 0:00:02.7]} 57... Kd3+ {[%clk
0:00:24.5]} 58. Kc7 {[%clk 0:00:03]} 58... Qg7+ {[%clk 0:00:21.5]} 0-1

[Event "Late-Titled-Tuesday-Blitz-February-06-2024"]
[Site "Chess.com"]
[Date "2024.02.06"]
[Round "8"]
[White "Jospem"]
[Black "Vladimir_Zakhartsov"]
[Result "1-0"]
[WhiteElo "3046"]
[BlackElo "2834"]
[TimeControl "180+1"]
[EndTime "15:29:53 PST"]
[Termination "Jospem won on time"]

1. e4 {[%clk 0:03:00.9]} 1... c5 {[%clk 0:02:49.7]} 2. Nf3 {[%clk 0:03:00.8]}
2... d6 {[%clk 0:02:50]} 3. c3 {[%clk 0:03:01.5]} 3... Nf6 {[%clk 0:02:50.2]} 4.
h3 {[%clk 0:03:01.9]} 4... g6 {[%clk 0:02:47]} 5. Bd3 {[%clk 0:03:02.1]} 5...
Bg7 {[%clk 0:02:46.8]} 6. Bc2 {[%clk 0:03:02.6]} 6... Nc6 {[%clk 0:02:43.3]} 7.
O-O {[%clk 0:03:02]} 7... O-O {[%clk 0:02:42.8]} 8. d4 {[%clk 0:03:01.9]} 8...
cxd4 {[%clk 0:02:42.8]} 9. cxd4 {[%clk 0:03:02.8]} 9... e5 {[%clk 0:02:42.9]}
10. d5 {[%clk 0:03:03]} 10... Nb4 {[%clk 0:02:41]} 11. Nc3 {[%clk 0:03:03.6]}
11... Nxc2 {[%clk 0:02:38.6]} 12. Qxc2 {[%clk 0:03:04.5]} 12... Ne8 {[%clk
0:02:32.8]} 13. Bg5 {[%clk 0:03:02]} 13... f6 {[%clk 0:02:31.5]} 14. Bd2 {[%clk
0:03:02.2]} 14... f5 {[%clk 0:02:31.5]} 15. Rac1 {[%clk 0:03:02.3]} 15... h6
{[%clk 0:02:19.3]} 16. Qb3 {[%clk 0:02:37.2]} 16... Rf7 {[%clk 0:02:04.9]} 17.
Rc2 {[%clk 0:02:33.3]} 17... Nf6 {[%clk 0:02:02.4]} 18. exf5 {[%clk 0:02:25.3]}
18... Bxf5 {[%clk 0:01:59.2]} 19. Rcc1 {[%clk 0:02:26]} 19... Ne4 {[%clk
0:01:57.6]} 20. Nxe4 {[%clk 0:02:06.9]} 20... Bxe4 {[%clk 0:01:58.5]} 21. Nh2
{[%clk 0:02:06.2]} 21... Qb6 {[%clk 0:01:48.7]} 22. Ng4 {[%clk 0:01:54.7]} 22...
Qxb3 {[%clk 0:01:39.7]} 23. axb3 {[%clk 0:01:55.6]} 23... Bxd5 {[%clk
0:01:27.3]} 24. Nxh6+ {[%clk 0:01:55.9]} 24... Bxh6 {[%clk 0:01:26.7]} 25. Bxh6
{[%clk 0:01:56.8]} 25... Bxb3 {[%clk 0:01:25.2]} 26. Rc3 {[%clk 0:01:57.5]}
26... Ba4 {[%clk 0:01:21.8]} 27. Re1 {[%clk 0:01:49.1]} 27... Bc6 {[%clk
0:01:20]} 28. Bg5 {[%clk 0:01:46]} 28... Re8 {[%clk 0:01:10.1]} 29. Rce3 {[%clk
0:01:39.2]} 29... Rf5 {[%clk 0:01:01.8]} 30. h4 {[%clk 0:01:39.5]} 30... e4
{[%clk 0:00:59.4]} 31. Rg3 {[%clk 0:01:30]} 31... Kf7 {[%clk 0:00:58.5]} 32. Rd1
{[%clk 0:01:29.5]} 32... Rd5 {[%clk 0:00:55.6]} 33. Rxd5 {[%clk 0:01:08.4]}
33... Bxd5 {[%clk 0:00:56.5]} 34. Be3 {[%clk 0:01:09.2]} 34... a6 {[%clk
0:00:52.6]} 35. Rg5 {[%clk 0:01:05.7]} 35... Bc6 {[%clk 0:00:48.9]} 36. h5
{[%clk 0:01:05.2]} 36... gxh5 {[%clk 0:00:47.3]} 37. Rxh5 {[%clk 0:01:06.1]}
37... Ke6 {[%clk 0:00:38.8]} 38. Kh2 {[%clk 0:01:03.3]} 38... Rf8 {[%clk
0:00:33.4]} 39. g4 {[%clk 0:01:03.1]} 39... d5 {[%clk 0:00:30.3]} 40. Bd4 {[%clk
0:00:49]} 40... Rf3 {[%clk 0:00:25.1]} 41. Rh6+ {[%clk 0:00:49.1]} 41... Ke7
{[%clk 0:00:17.7]} 42. g5 {[%clk 0:00:49]} 42... Bd7 {[%clk 0:00:14.9]} 43. Bc5+
{[%clk 0:00:44.1]} 43... Ke8 {[%clk 0:00:11]} 44. Rh8+ {[%clk 0:00:42.9]} 44...
Kf7 {[%clk 0:00:08.7]} 45. Rh7+ {[%clk 0:00:43.3]} 45... Ke8 {[%clk 0:00:08.2]}
46. g6 {[%clk 0:00:39.6]} 46... Bf5 {[%clk 0:00:07.2]} 47. Re7+ {[%clk
0:00:25.9]} 47... Kd8 {[%clk 0:00:05.9]} 48. g7 {[%clk 0:00:26.5]} 48... Bh7
{[%clk 0:00:05.9]} 49. Rxb7 {[%clk 0:00:26.8]} 49... Ke8 {[%clk 0:00:03.9]} 50.
Re7+ {[%clk 0:00:19.4]} 50... Kd8 {[%clk 0:00:04.4]} 51. Ra7 {[%clk 0:00:17.4]}
51... Ke8 {[%clk 0:00:04.4]} 52. Bd4 {[%clk 0:00:15.3]} 52... Bg8 {[%clk
0:00:04.3]} 53. Rxa6 {[%clk 0:00:14.5]} 53... Rd3 {[%clk 0:00:04.2]} 54. Ra8+
{[%clk 0:00:14.8]} 54... Kf7 {[%clk 0:00:04.2]} 55. Be5 {[%clk 0:00:13.1]} 55...
Rf3 {[%clk 0:00:03.9]} 56. Rf8+ {[%clk 0:00:13.3]} 56... Kg6 {[%clk 0:00:03.1]}
57. Rxg8 {[%clk 0:00:14]} 57... Rxf2+ {[%clk 0:00:03.2]} 58. Kg1 {[%clk
0:00:13.2]} 58... e3 {[%clk 0:00:03.4]} 59. Re8 {[%clk 0:00:12.2]} 1-0

[Event "Late-Titled-Tuesday-Blitz-February-06-2024"]
[Site "Chess.com"]
[Date "2024.02.06"]
[Round "8"]
[White "Kostukov_Alex"]
[Black "Vasily85"]
[Result "1-0"]
[WhiteElo "2288"]
[BlackElo "2471"]
[TimeControl "180+1"]
[EndTime "15:29:55 PST"]
[Termination "Kostukov_Alex won on time"]

1. g3 {[%clk 0:02:57.8]} 1... Nf6 {[%clk 0:02:43.6]} 2. Bg2 {[%clk 0:02:57.6]}
2... g6 {[%clk 0:02:43]} 3. c4 {[%clk 0:02:57.6]} 3... Bg7 {[%clk 0:02:43]} 4.
Nf3 {[%clk 0:02:58.2]} 4... O-O {[%clk 0:02:40.5]} 5. O-O {[%clk 0:02:58.8]}
5... d6 {[%clk 0:02:39.9]} 6. d4 {[%clk 0:02:58.8]} 6... c6 {[%clk 0:02:33.2]}
7. Nc3 {[%clk 0:02:58.4]} 7... Qa5 {[%clk 0:02:31.9]} 8. h4 {[%clk 0:02:50.9]}
8... e5 {[%clk 0:02:18.4]} 9. d5 {[%clk 0:02:42.8]} 9... cxd5 {[%clk 0:02:14.9]}
10. cxd5 {[%clk 0:02:41.8]} 10... b5 {[%clk 0:01:34.4]} 11. Bg5 {[%clk 0:02:40]}
11... Nbd7 {[%clk 0:01:30.1]} 12. Nd2 {[%clk 0:02:31.1]} 12... b4 {[%clk
0:01:23.3]} 13. Nce4 {[%clk 0:02:20.9]} 13... Nxe4 {[%clk 0:00:49.3]} 14. Nxe4
{[%clk 0:02:18.9]} 14... f6 {[%clk 0:00:49.6]} 15. Bd2 {[%clk 0:02:10.6]} 15...
Qb6 {[%clk 0:00:48.5]} 16. Be3 {[%clk 0:02:05.7]} 16... Qb8 {[%clk 0:00:45.1]}
17. Rc1 {[%clk 0:02:00.8]} 17... f5 {[%clk 0:00:34.8]} 18. Ng5 {[%clk
0:01:52.7]} 18... f4 {[%clk 0:00:34.9]} 19. Bd2 {[%clk 0:01:37.9]} 19... fxg3
{[%clk 0:00:10.3]} 20. fxg3 {[%clk 0:01:38.8]} 20... Nf6 {[%clk 0:00:10.8]} 21.
Ne6 {[%clk 0:01:34.9]} 21... Bxe6 {[%clk 0:00:10.8]} 22. dxe6 {[%clk 0:01:34.7]}
22... Qb6+ {[%clk 0:00:11.7]} 23. Kh1 {[%clk 0:01:33.6]} 23... Rae8 {[%clk
0:00:08.4]} 24. Qb3 {[%clk 0:01:17.9]} 24... Kh8 {[%clk 0:00:08.1]} 25. Rc6
{[%clk 0:01:12.3]} 25... Qd4 {[%clk 0:00:07.5]} 26. Qxb4 {[%clk 0:01:05.1]}
26... Ng4 {[%clk 0:00:06.8]} 27. Rxf8+ {[%clk 0:01:00.6]} 27... Rxf8 {[%clk
0:00:06.6]} 28. Qxd4 {[%clk 0:00:57.7]} 28... exd4 {[%clk 0:00:07.5]} 29. Rxd6
{[%clk 0:00:52.7]} 29... Be5 {[%clk 0:00:07.5]} 30. Rd7 {[%clk 0:00:41.5]} 30...
Bxg3 {[%clk 0:00:07.4]} 31. Bf3 {[%clk 0:00:37.7]} 31... Nf2+ {[%clk 0:00:06]}
32. Kg2 {[%clk 0:00:36.8]} 32... Bxh4 {[%clk 0:00:06.4]} 33. Rxd4 {[%clk
0:00:34]} 33... Bf6 {[%clk 0:00:06.1]} 34. Rd7 {[%clk 0:00:30.7]} 34... Nd1
{[%clk 0:00:04.2]} 35. Bb4 {[%clk 0:00:28.8]} 35... Ne3+ {[%clk 0:00:02.3]} 36.
Kf2 {[%clk 0:00:26.2]} 36... Ng4+ {[%clk 0:00:02.5]} 37. Bxg4 {[%clk 0:00:24.1]}
37... Be7+ {[%clk 0:00:02.3]} 38. Bf3 {[%clk 0:00:23.1]} 38... Bxb4 {[%clk
0:00:02.7]} 39. a3 {[%clk 0:00:22]} 39... Bc5+ {[%clk 0:00:02.6]} 40. Kg2 {[%clk
0:00:22.5]} 40... Re8 {[%clk 0:00:03.2]} 41. Bd5 {[%clk 0:00:22]} 41... Re7
{[%clk 0:00:03.5]} 42. Rd8+ {[%clk 0:00:17.8]} 42... Kg7 {[%clk 0:00:04]} 43. e4
{[%clk 0:00:17.9]} 43... h5 {[%clk 0:00:04.6]} 44. b4 {[%clk 0:00:17.2]} 44...
Bb6 {[%clk 0:00:04.3]} 45. a4 {[%clk 0:00:17.8]} 45... Kf6 {[%clk 0:00:04.2]}
46. a5 {[%clk 0:00:17.9]} 46... Bd4 {[%clk 0:00:04.5]} 47. Kf3 {[%clk
0:00:17.3]} 47... Ke5 {[%clk 0:00:04.5]} 48. Rg8 {[%clk 0:00:16.3]} 48... Kf6
{[%clk 0:00:04.3]} 49. Rf8+ {[%clk 0:00:16.1]} 49... Kg5 {[%clk 0:00:04.7]} 50.
b5 {[%clk 0:00:15]} 50... Bc3 {[%clk 0:00:03.3]} 51. b6 {[%clk 0:00:10.5]} 51...
axb6 {[%clk 0:00:03.5]} 52. a6 {[%clk 0:00:11.1]} 52... b5 {[%clk 0:00:01.9]}
53. Rf7 {[%clk 0:00:08.7]} 1-0

[Event "Late-Titled-Tuesday-Blitz-February-06-2024"]
[Site "Chess.com"]
[Date "2024.02.06"]
[Round "8"]
[White "koziororo"]
[Black "Cambek64"]
[Result "1/2-1/2"]
[WhiteElo "2608"]
[BlackElo "2502"]
[TimeControl "180+1"]
[EndTime "15:29:57 PST"]
[Termination "Game drawn by agreement"]

1. e4 {[%clk 0:02:57.1]} 1... e6 {[%clk 0:02:59]} 2. b3 {[%clk 0:02:56.6]} 2...
d5 {[%clk 0:02:58.6]} 3. Bb2 {[%clk 0:02:57.1]} 3... dxe4 {[%clk 0:02:54.8]} 4.
Nc3 {[%clk 0:02:57.4]} 4... Nf6 {[%clk 0:02:55]} 5. Qe2 {[%clk 0:02:56.6]} 5...
Bd7 {[%clk 0:02:51.8]} 6. Nxe4 {[%clk 0:02:56]} 6... Nxe4 {[%clk 0:02:50.3]} 7.
Qxe4 {[%clk 0:02:56.9]} 7... Bc6 {[%clk 0:02:50.2]} 8. Qg4 {[%clk 0:02:56.8]}
8... Nd7 {[%clk 0:02:50.2]} 9. O-O-O {[%clk 0:02:55.6]} 9... Nf6 {[%clk
0:02:49.4]} 10. Qe2 {[%clk 0:02:55]} 10... Be7 {[%clk 0:02:46.8]} 11. Nf3 {[%clk
0:02:53.9]} 11... Bxf3 {[%clk 0:02:33.6]} 12. Qxf3 {[%clk 0:02:53.1]} 12... c6
{[%clk 0:02:34.3]} 13. g4 {[%clk 0:02:49.8]} 13... Qd5 {[%clk 0:02:27.5]} 14.
Bg2 {[%clk 0:02:45.2]} 14... Qxf3 {[%clk 0:02:24.6]} 15. Bxf3 {[%clk 0:02:46.1]}
15... O-O {[%clk 0:02:23.9]} 16. h4 {[%clk 0:02:45.2]} 16... Rfd8 {[%clk
0:02:20.2]} 17. Rde1 {[%clk 0:02:21.4]} 17... Bc5 {[%clk 0:02:17.2]} 18. Rh2
{[%clk 0:02:17.8]} 18... Bd4 {[%clk 0:02:16.4]} 19. g5 {[%clk 0:02:04.3]} 19...
Bxb2+ {[%clk 0:02:15]} 20. Kxb2 {[%clk 0:02:05.2]} 20... Nd5 {[%clk 0:02:11.9]}
21. d3 {[%clk 0:02:04.6]} 21... Rd7 {[%clk 0:02:08.9]} 22. h5 {[%clk 0:02:04.6]}
22... Re8 {[%clk 0:02:08.3]} 23. g6 {[%clk 0:01:58]} 23... fxg6 {[%clk
0:02:05.5]} 24. hxg6 {[%clk 0:01:58.9]} 24... hxg6 {[%clk 0:02:01.5]} 25. Rg1
{[%clk 0:01:55.7]} 25... Rf8 {[%clk 0:01:51.2]} 26. Be4 {[%clk 0:01:54.1]} 26...
Ne7 {[%clk 0:01:51.6]} 27. f3 {[%clk 0:01:44.3]} 27... Rf6 {[%clk 0:01:49.7]}
28. Rgh1 {[%clk 0:01:43.6]} 28... Rf8 {[%clk 0:01:36.9]} 29. Kc3 {[%clk
0:01:28.5]} 29... Kf7 {[%clk 0:01:35.9]} 30. Rg1 {[%clk 0:01:26.7]} 30... Rdd8
{[%clk 0:01:28.9]} 31. Rhg2 {[%clk 0:01:26.2]} 31... Rh8 {[%clk 0:01:25.9]} 32.
Bxg6+ {[%clk 0:01:23.5]} 32... Nxg6 {[%clk 0:01:26.3]} 33. Rxg6 {[%clk
0:01:24.4]} 33... Rh7 {[%clk 0:01:26.1]} 34. R6g4 {[%clk 0:01:22.6]} 34... Rd5
{[%clk 0:01:25.7]} 35. d4 {[%clk 0:01:18.3]} 35... Rf5 {[%clk 0:01:26]} 36. f4
{[%clk 0:01:16.7]} 36... Rfh5 {[%clk 0:01:18.5]} 37. Kc4 {[%clk 0:01:04.8]}
37... b6 {[%clk 0:01:16.6]} 38. a4 {[%clk 0:01:04.5]} 38... Rh4 {[%clk
0:01:15.8]} 39. c3 {[%clk 0:00:53.9]} 39... Rxg4 {[%clk 0:01:15.5]} 40. Rxg4
{[%clk 0:00:53.5]} 40... Kf6 {[%clk 0:01:11.4]} 41. a5 {[%clk 0:00:51.3]} 41...
Kf5 {[%clk 0:01:07.7]} 42. Rg1 {[%clk 0:00:51.9]} 42... Kxf4 {[%clk 0:01:07]}
43. axb6 {[%clk 0:00:52.5]} 43... axb6 {[%clk 0:01:06.8]} 44. b4 {[%clk
0:00:53.4]} 44... g5 {[%clk 0:00:56.1]} 45. b5 {[%clk 0:00:53.4]} 45... Rc7
{[%clk 0:00:50.2]} 46. Rf1+ {[%clk 0:00:35]} 46... Kg4 {[%clk 0:00:47.3]} 47.
Re1 {[%clk 0:00:30.1]} 47... cxb5+ {[%clk 0:00:45.2]} 48. Kxb5 {[%clk
0:00:30.6]} 48... Rxc3 {[%clk 0:00:45.2]} 49. Rxe6 {[%clk 0:00:31.2]} 49... Rd3
{[%clk 0:00:44.4]} 50. Kc4 {[%clk 0:00:29.9]} 50... Rd1 {[%clk 0:00:43.2]} 51.
Rxb6 {[%clk 0:00:30.4]} 51... Kf5 {[%clk 0:00:41.5]} 52. Rb5+ {[%clk 0:00:28.9]}
52... Kf4 {[%clk 0:00:40.9]} 53. Rb8 {[%clk 0:00:28.5]} 53... g4 {[%clk
0:00:41.2]} 54. d5 {[%clk 0:00:28.1]} 54... g3 {[%clk 0:00:39.1]} 55. Rf8+
{[%clk 0:00:28.7]} 55... Ke3 {[%clk 0:00:38.5]} 56. Rg8 {[%clk 0:00:28]} 56...
Kf2 {[%clk 0:00:38.9]} 57. Kc5 {[%clk 0:00:28.7]} 57... g2 {[%clk 0:00:38.2]}
58. d6 {[%clk 0:00:29.2]} 58... Rd3 {[%clk 0:00:35.3]} 59. Kc6 {[%clk
0:00:24.7]} 59... Rg3 {[%clk 0:00:33.2]} 60. Rxg3 {[%clk 0:00:24.7]} 60... Kxg3
{[%clk 0:00:32.6]} 61. d7 {[%clk 0:00:25.6]} 61... g1=Q {[%clk 0:00:32]} 62.
d8=Q {[%clk 0:00:26.5]} 62... Qg2+ {[%clk 0:00:31.5]} 63. Kc5 {[%clk 0:00:26.5]}
63... Qf2+ {[%clk 0:00:31.2]} 64. Kb4 {[%clk 0:00:26.1]} 64... Qf4+ {[%clk
0:00:31.5]} 65. Kc3 {[%clk 0:00:25.6]} 65... Qf3+ {[%clk 0:00:31]} 66. Kd2
{[%clk 0:00:25.4]} 66... Qf2+ {[%clk 0:00:30.8]} 67. Kd1 {[%clk 0:00:25]} 67...
Qf3+ {[%clk 0:00:31]} 68. Kc2 {[%clk 0:00:25.1]} 68... Qe2+ {[%clk 0:00:30.6]}
69. Kc3 {[%clk 0:00:25.1]} 69... Qe3+ {[%clk 0:00:31]} 70. Kc4 {[%clk
0:00:24.6]} 70... Qc1+ {[%clk 0:00:26.7]} 1/2-1/2

[Event "Late-Titled-Tuesday-Blitz-February-06-2024"]
[Site "Chess.com"]
[Date "2024.02.06"]
[Round "8"]
[White "ChessLover0108"]
[Black "LikeWater"]
[Result "1-0"]
[WhiteElo "3007"]
[BlackElo "2782"]
[TimeControl "180+1"]
[EndTime "15:30:03 PST"]
[Termination "ChessLover0108 won on time"]

1. g3 {[%clk 0:03:00.9]} 1... e5 {[%clk 0:02:55.9]} 2. Nf3 {[%clk 0:03:00.8]}
2... e4 {[%clk 0:02:53]} 3. Nd4 {[%clk 0:02:59.4]} 3... d5 {[%clk 0:02:52.6]} 4.
d3 {[%clk 0:02:59]} 4... exd3 {[%clk 0:02:52.4]} 5. cxd3 {[%clk 0:02:58.6]} 5...
Nf6 {[%clk 0:02:52.3]} 6. Bg2 {[%clk 0:02:58.6]} 6... Be7 {[%clk 0:02:52]} 7.
O-O {[%clk 0:02:59]} 7... O-O {[%clk 0:02:52.3]} 8. Nc3 {[%clk 0:02:57.6]} 8...
c5 {[%clk 0:02:51.7]} 9. Nb3 {[%clk 0:02:58.1]} 9... h6 {[%clk 0:02:51]} 10. Bf4
{[%clk 0:02:51.9]} 10... Be6 {[%clk 0:02:40.2]} 11. d4 {[%clk 0:02:43.1]} 11...
Na6 {[%clk 0:02:25.8]} 12. dxc5 {[%clk 0:02:30.3]} 12... Nxc5 {[%clk 0:02:26.7]}
13. Nd4 {[%clk 0:02:31.2]} 13... Qb6 {[%clk 0:02:17.4]} 14. Rb1 {[%clk
0:02:05.6]} 14... a6 {[%clk 0:02:05.7]} 15. Be3 {[%clk 0:01:45.1]} 15... Ng4
{[%clk 0:01:53.2]} 16. Bf4 {[%clk 0:01:41.8]} 16... Rfd8 {[%clk 0:01:44]} 17.
Nxe6 {[%clk 0:01:32.1]} 17... fxe6 {[%clk 0:01:39.7]} 18. e4 {[%clk 0:01:32.6]}
18... Nf6 {[%clk 0:01:17.5]} 19. e5 {[%clk 0:01:26.2]} 19... Nfe4 {[%clk
0:00:53.9]} 20. Qg4 {[%clk 0:01:23]} 20... Kh7 {[%clk 0:00:52.9]} 21. Nxe4
{[%clk 0:01:13.8]} 21... Nxe4 {[%clk 0:00:53.8]} 22. Be3 {[%clk 0:01:08.7]}
22... Qb4 {[%clk 0:00:37.9]} 23. Qxe6 {[%clk 0:01:05.9]} 23... Bc5 {[%clk
0:00:27.3]} 24. a3 {[%clk 0:01:01.2]} 24... Qb5 {[%clk 0:00:21]} 25. Bxe4+
{[%clk 0:00:43.5]} 25... dxe4 {[%clk 0:00:21.9]} 26. Qf5+ {[%clk 0:00:44.4]}
26... Kh8 {[%clk 0:00:21.7]} 27. Qxe4 {[%clk 0:00:45.3]} 27... Bxe3 {[%clk
0:00:20.1]} 28. Qxe3 {[%clk 0:00:46.2]} 28... Rd3 {[%clk 0:00:18.9]} 29. Qe4
{[%clk 0:00:44.9]} 29... Rad8 {[%clk 0:00:17.2]} 30. e6 {[%clk 0:00:44]} 30...
Rd2 {[%clk 0:00:13.7]} 31. e7 {[%clk 0:00:40.9]} 31... Re8 {[%clk 0:00:14]} 32.
Rfe1 {[%clk 0:00:39]} 32... Rxb2 {[%clk 0:00:12.9]} 33. Rxb2 {[%clk 0:00:39.9]}
33... Qxb2 {[%clk 0:00:13.6]} 34. Qg6 {[%clk 0:00:36.2]} 34... Qb5 {[%clk
0:00:10.7]} 35. Qf7 {[%clk 0:00:34.9]} 35... Qd7 {[%clk 0:00:07.5]} 36. h4
{[%clk 0:00:34.6]} 36... Qc6 {[%clk 0:00:07.4]} 37. Re6 {[%clk 0:00:32.3]} 37...
Qd7 {[%clk 0:00:07.4]} 38. g4 {[%clk 0:00:19.5]} 38... Qd1+ {[%clk 0:00:04.8]}
39. Kh2 {[%clk 0:00:19.8]} 39... Qd7 {[%clk 0:00:02.4]} 40. g5 {[%clk
0:00:17.4]} 40... hxg5 {[%clk 0:00:02.4]} 41. hxg5 {[%clk 0:00:18.3]} 41... b5
{[%clk 0:00:01.6]} 42. Re3 {[%clk 0:00:12.4]} 42... Qd6+ {[%clk 0:00:01.1]} 43.
Kg2 {[%clk 0:00:09.9]} 43... Qc6+ {[%clk 0:00:01.3]} 44. Kg1 {[%clk 0:00:05.8]}
44... Qc1+ {[%clk 0:00:01.8]} 45. Kh2 {[%clk 0:00:06.4]} 45... Qc7+ {[%clk
0:00:02.2]} 46. f4 {[%clk 0:00:06.8]} 46... Qc2+ {[%clk 0:00:02.1]} 47. Kg3
{[%clk 0:00:07.4]} 47... Qc6 {[%clk 0:00:01.8]} 48. Kg4 {[%clk 0:00:05.1]} 48...
Qd7+ {[%clk 0:00:01.7]} 49. Kh4 {[%clk 0:00:03.2]} 49... a5 {[%clk 0:00:01.7]}
50. Rh3 {[%clk 0:00:03.5]} 1-0